Workbook

Sheet 장비리스트
A1: 공용장비 리스트
I3: (단위 : 원)
A4: 순번 | B4: 거래품명 | C4: 자산번호 | D4: 자산상태 | E4: 비품가액 | F4: 회계구분 | G4: 취득일자 | H4: 장비활용가 (7개월 기준) | I4: 부가세 | J4: 계
A5: 1 | B5: AI빅데이터클라우드플랫폼 | C5: 201801633 | D5: 기계기구 | E5: 운영중(사용) | F5: 10,000,000 | G5: 2018-12-27 | H5: =F5*20%*7/12 -> 1,166,667 | I5: =H5*10% -> 116,667 | J5: =SUM(H5:I5) -> 1,283,333
A6: 2 | B6: AI빅데이터클라우드플랫폼 | C6: 201801632 | D6: 기계기구 | E6: 운영중(사용) | F6: 10,000,000 | G6: 2018-12-27 | H6: =F6*20%*7/12 -> 1,166,667 | I6: =H6*10% -> 116,667 | J6: =SUM(H6:I6) -> 1,283,333
A7: 3 | B7: AI빅데이터클라우드플랫폼 | C7: 201801631 | D7: 기계기구 | E7: 운영중(사용) | F7: 10,000,000 | G7: 2018-12-27 | H7: 1,166,667 | I7: 116,667 | J7: 1,283,333
A8: 4 | B8: AI빅데이터클라우드플랫폼 | C8: 201801630 | D8: 기계기구 | E8: 운영중(사용) | F8: 10,000,000 | G8: 2018-12-27 | H8: 1,166,667 | I8: 116,667 | J8: 1,283,333
A9: 5 | B9: AI빅데이터클라우드플랫폼 | C9: 201801629 | D9: 기계기구 | E9: 운영중(사용) | F9: 10,000,000 | G9: 2018-12-27 | H9: 1,166,667 | I9: 116,667 | J9: 1,283,333
A10: 6 | B10: AI빅데이터클라우드플랫폼 | C10: 201801628 | D10: 기계기구 | E10: 운영중(사용) | F10: 10,000,000 | G10: 2018-12-27 | H10: 1,166,667 | I10: 116,667 | J10: 1,283,333
A11: 7 | B11: AI빅데이터클라우드플랫폼 | C11: 201801627 | D11: 기계기구 | E11: 운영중(사용) | F11: 10,000,000 | G11: 2018-12-27 | H11: 1,166,667 | I11: 116,667 | J11: 1,283,333
A12: 8 | B12: AI빅데이터클라우드플랫폼 | C12: 201801624 | D12: 기계기구 | E12: 운영중(사용) | F12: 10,000,000 | G12: 2018-12-27 | H12: 1,166,667 | I12: 116,667 | J12: 1,283,333
A13: 9 | B13: AI빅데이터클라우드플랫폼 | C13: 201801622 | D13: 기계기구 | E13: 운영중(사용) | F13: 10,000,000 | G13: 2018-12-27 | H13: 1,166,667 | I13: 116,667 | J13: 1,283,333
A14: 10 | B14: AI빅데이터클라우드플랫폼 | C14: 201801621 | D14: 기계기구 | E14: 운영중(사용) | F14: 10,000,000 | G14: 2018-12-27 | H14: 1,166,667 | I14: 116,667 | J14: 1,283,333
A15: 11 | B15: AI빅데이터클라우드플랫폼 | C15: 201801620 | D15: 기계기구 | E15: 운영중(사용) | F15: 10,000,000 | G15: 2018-12-27 | H15: 1,166,667 | I15: 116,667 | J15: 1,283,333
A16: 12 | B16: AI빅데이터클라우드플랫폼 | C16: 201801619 | D16: 기계기구 | E16: 운영중(사용) | F16: 10,000,000 | G16: 2018-12-27 | H16: 1,166,667 | I16: 116,667 | J16: 1,283,333
A17: 13 | B17: AI빅데이터클라우드플랫폼 | C17: 201801618 | D17: 기계기구 | E17: 운영중(사용) | F17: 10,000,000 | G17: 2018-12-27 | H17: 1,166,667 | I17: 116,667 | J17: 1,283,333
A18: 14 | B18: AI빅데이터클라우드플랫폼 | C18: 201801617 | D18: 기계기구 | E18: 운영중(사용) | F18: 10,000,000 | G18: 2018-12-27 | H18: 1,166,667 | I18: 116,667 | J18: 1,283,333
A19: 15 | B19: AI빅데이터클라우드플랫폼 | C19: 201801614 | D19: 기계기구 | E19: 운영중(사용) | F19: 10,000,000 | G19: 2018-12-27 | H19: 1,166,667 | I19: 116,667 | J19: 1,283,333
A20: 16 | B20: AI빅데이터클라우드플랫폼 | C20: 201801613 | D20: 기계기구 | E20: 운영중(사용) | F20: 10,000,000 | G20: 2018-12-27 | H20: 1,166,667 | I20: 116,667 | J20: 1,283,333
A21: 17 | B21: AI빅데이터클라우드플랫폼 | C21: 201801612 | D21: 기계기구 | E21: 운영중(사용) | F21: 10,000,000 | G21: 2018-12-27 | H21: 1,166,667 | I21: 116,667 | J21: 1,283,333
A22: 18 | B22: AI빅데이터클라우드플랫폼 | C22: 201801608 | D22: 기계기구 | E22: 운영중(사용) | F22: 10,000,000 | G22: 2018-12-27 | H22: 1,166,667 | I22: 116,667 | J22: 1,283,333
A23: 19 | B23: AI빅데이터클라우드플랫폼 | C23: 201801607 | D23: 기계기구 | E23: 운영중(사용) | F23: 10,000,000 | G23: 2018-12-27 | H23: 1,166,667 | I23: 116,667 | J23: 1,283,333
A24: 20 | B24: AI빅데이터클라우드플랫폼 | C24: 201801606 | D24: 기계기구 | E24: 운영중(사용) | F24: 10,000,000 | G24: 2018-12-27 | H24: 1,166,667 | I24: 116,667 | J24: 1,283,333
A25: 21 | B25: 이동통신 품질 커버리지맵 시스템 | C25: 201801600 | D25: 기계기구 | E25: 운영중(사용) | F25: 19,800,000 | G25: 2018-12-24 | H25: 2,310,000 | I25: 231,000 | J25: 2,541,000
A26: 22 | B26: HP DL360 | C26: 201801058 | D26: 기계기구 | E26: 운영중(사용) | F26: 14,465,000 | G26: 2018-09-03 | H26: 1,687,583 | I26: 168,758 | J26: 1,856,342
A27: 23 | B27: HP DL360 | C27: 201801057 | D27: 기계기구 | E27: 운영중(사용) | F27: 14,465,000 | G27: 2018-09-03 | H27: 1,687,583 | I27: 168,758 | J27: 1,856,342
A28: 24 | B28: RenderFarm | C28: 201800754 | D28: 기계기구 | E28: 운영중(사용) | F28: 11,660,000 | G28: 2018-05-29 | H28: 1,360,333 | I28: 136,033 | J28: 1,496,367
A29: 25 | B29: RenderFarm | C29: 201800753 | D29: 기계기구 | E29: 운영중(사용) | F29: 11,660,000 | G29: 2018-05-29 | H29: 1,360,333 | I29: 136,033 | J29: 1,496,367
A30: 26 | B30: RenderFarm | C30: 201800752 | D30: 기계기구 | E30: 운영중(사용) | F30: 11,660,000 | G30: 2018-05-29 | H30: 1,360,333 | I30: 136,033 | J30: 1,496,367
A31: 27 | B31: RenderFarm Management Server | C31: 201704397 | D31: 기계기구 | E31: 운영중(사용) | F31: 13,882,000 | G31: 2018-01-29 | H31: 1,619,567 | I31: 161,957 | J31: 1,781,523
A32: 28 | B32: 빅데이터 분석 표준 어플라이언스 서버(소프트웨어 포함) | C32: 201402376 | D32: 기계기구 | E32: 운영중(사용) | F32: 9,900,000 | G32: 2015-02-17 | H32: =F32*10%*7/12 -> 577,500 | I32: 57,750 | J32: 635,250
A33: 29 | B33: 빅데이터 분석 표준 어플라이언스 서버(소프트웨어 포함) | C33: 201402375 | D33: 기계기구 | E33: 운영중(사용) | F33: 9,900,000 | G33: 2015-02-17 | H33: =F33*10%*7/12 -> 577,500 | I33: 57,750 | J33: 635,250
A34: 30 | B34: 빅데이터 분석 표준 어플라이언스 서버(소프트웨어 포함) | C34: 201402374 | D34: 기계기구 | E34: 운영중(사용) | F34: 9,900,000 | G34: 2015-02-17 | H34: =F34*10%*7/12 -> 577,500 | I34: 57,750 | J34: 635,250
A35: 31 | B35: 공용장비_360도 VR 카메라시스템 서비스 모듈 소프트웨어 | C35: 201402358 | D35: 소프트웨어 | E35: 운영중(사용) | F35: 11,220,000 | G35: 2015-02-13 | H35: =F35*10%*7/12 -> 654,500 | I35: 65,450 | J35: 719,950
A36: 32 | B36: 사전시각화 온셋 프리비주얼 시스템 / NTIS-192895 | C36: 201400892 | D36: 기계기구 | E36: 운영중(사용) | F36: 96,800,000 | G36: 2014-10-23 | H36: =F36*10%*7/12 -> 5,646,667 | I36: 564,667 | J36: 6,211,333
A37: 33 | B37: Xsens Multi Performance Headcam System /NTIS-172617 | C37: 201202581 | D37: 기계기구 | E37: 운영중(사용) | F37: 66,000,000 | G37: 2012-11-07 | H37: =F37*10%*7/12 -> 3,850,000 | I37: 385,000 | J37: 4,235,000
A38: 34 | B38: [3-3-e]모션캡쳐시스템_자이로식 /NTIS-171379 | C38: 201202173 | D38: 기계기구 | E38: 운영중(사용) | F38: 100,000,000 | G38: 2012-09-13 | H38: =F38*10%*7/12 -> 5,833,333 | I38: 583,333 | J38: 6,416,667
A39: 35 | B39: [3-3-a]Storage 외 | C39: 201103148 | D39: 기계기구 | E39: 운영중(사용) | F39: 18,600,000 | G39: 2011-07-29 | H39: =F39*10%*7/12 -> 1,085,000 | I39: 108,500 | J39: 1,193,500
A40: 36 | B40: [3-3-a]3D영상 편집 프로그램 | C40: 201103147 | D40: 소프트웨어 | E40: 운영중(사용) | F40: 4,728,000 | G40: 2011-07-29 | H40: =F40*10%*7/12 -> 275,800 | I40: 27,580 | J40: 303,380
A41: 37 | B41: [3-3-a]Final Pro system 외 | C41: 201103145 | E41: 운영중(사용) | F41: 6,257,000 | G41: 2011-07-29 | H41: =F41*10%*7/12 -> 364,992 | I41: 36,499 | J41: 401,491
A42: 38 | B42: [3-3-a]Renderfam server /NTIS-157318 | C42: 201103142 | D42: 기계기구 | E42: 운영중(사용) | F42: 41,812,639 | G42: 2011-07-29 | H42: =F42*10%*7/12 -> 2,439,071 | I42: 243,907 | J42: 2,682,978
A43: 39 | B43: 영화급(2K) 3D촬영 시스템/NTIS-143866 | C43: 201003224 | E43: 운영중(사용) | F43: 128,600,000 | G43: 2010-08-02 | H43: =F43*10%*7/12 -> 7,501,667 | I43: 750,167 | J43: 8,251,833
A44: 40 | B44: FLA scanner system/NTIS-143734 | C44: 201003201 | E44: 운영중(사용) | F44: 120,000,000 | G44: 2010-07-26 | H44: =F44*10%*7/12 -> 7,000,000 | I44: 700,000 | J44: 7,700,000
A45: 41 | B45: 모션캡쳐 페이셜 글러브/NTIS-143694 | C45: 201003019 | E45: 운영중(사용) | F45: 47,300,000 | G45: 2010-07-05 | H45: =F45*10%*7/12 -> 2,759,167 | I45: 275,917 | J45: 3,035,083
A46: 42 | B46: 3D프린터/NTIS-143481 | C46: 200906054 | D46: 기타 | E46: 운영중(사용) | F46: 86,000,000 | G46: 2010-01-19 | H46: =F46*10%*7/12 -> 5,016,667 | I46: 501,667 | J46: 5,518,333
A47: 43 | B47: 3D스캐너/NTIS-143339 | C47: 200906053 | D47: 기계기구 | E47: 운영중(사용) | F47: 86,000,000 | G47: 2010-01-19 | H47: =F47*10%*7/12 -> 5,016,667 | I47: 501,667 | J47: 5,518,333
A48: 44 | B48: 모션캡쳐 <실험 기자재> /NTIS-143577 | C48: 200905604 | E48: 운영중(사용) | F48: 90,000,000 | G48: 2009-12-08 | H48: =F48*10%*7/12 -> 5,250,000 | I48: 525,000 | J48: 5,775,000
A49: 45 | B49: 페이셜 모션캡쳐 업그레이드 키트 | C49: 201601236 | D49: 기계기구 | E49: 운영중(사용) | F49: 26,270,000 | G49: 2016-12-16 | H49: 3,064,833 | I49: 306,483 | J49: 3,371,317
A50: 46 | B50: 지능형 드론(Blueye 1K Drone) | C50: 201600838 | D50: 기계기구 | E50: 운영중(사용) | F50: 2,400,000 | G50: 2016-08-16 | H50: 280,000 | I50: 28,000 | J50: 308,000
A51: 47 | B51: 지능형 드론(Blueye 1K Drone) | C51: 201600837 | D51: 기계기구 | E51: 운영중(사용) | F51: 2,400,000 | G51: 2016-08-16 | H51: 280,000 | I51: 28,000 | J51: 308,000
A52: 48 | B52: 지능형 드론(Blueye 1K Drone) | C52: 201600835 | D52: 기계기구 | E52: 운영중(사용) | F52: 2,400,000 | G52: 2016-08-16 | H52: 280,000 | I52: 28,000 | J52: 308,000
A53: 49 | B53: 지능형 드론(Blueye 1K Drone) | C53: 201600834 | D53: 기계기구 | E53: 운영중(사용) | F53: 2,400,000 | G53: 2016-08-16 | H53: 280,000 | I53: 28,000 | J53: 308,000
A54: 50 | B54: 지능형 드론(Blueye 1K Drone) | C54: 201600833 | D54: 기계기구 | E54: 운영중(사용) | F54: 2,400,000 | G54: 2016-08-16 | H54: 280,000 | I54: 28,000 | J54: 308,000
A55: 51 | B55: 지능형 드론(Blueye 1K Drone) | C55: 201600832 | D55: 기계기구 | E55: 운영중(사용) | F55: 2,400,000 | G55: 2016-08-16 | H55: 280,000 | I55: 28,000 | J55: 308,000
A56: 52 | B56: 지능형 드론(Blueye 1K Drone) | C56: 201600831 | D56: 기계기구 | E56: 운영중(사용) | F56: 2,400,000 | G56: 2016-08-16 | H56: 280,000 | I56: 28,000 | J56: 308,000
A57: 53 | B57: 지능형 드론(Blueye 1K Drone) | C57: 201600830 | D57: 기계기구 | E57: 운영중(사용) | F57: 2,400,000 | G57: 2016-08-16 | H57: 280,000 | I57: 28,000 | J57: 308,000
A58: 54 | B58: 지능형 드론(Blueye 1K Drone) | C58: 201600829 | D58: 기계기구 | E58: 운영중(사용) | F58: 2,400,000 | G58: 2016-08-16 | H58: 280,000 | I58: 28,000 | J58: 308,000
A59: 55 | B59: Xsens MVN Awinda Upgrade | C59: 201402020 | D59: 기계기구 | E59: 운영중(사용) | F59: 29,700,000 | G59: 2015-01-19 | H59: =F59*10%*7/12 -> 1,732,500 | I59: 173,250 | J59: 1,905,750
A60: 56 | B60: 3D카메라 렌즈시스템/NTIS-155895 | C60: 201104339 | D60: 소프트웨어 | E60: 운영중(사용) | F60: 95,000,000 | G60: 2011-07-29 | H60: =F60*10%*7/12 -> 5,541,667 | I60: 554,167 | J60: 6,095,833
